Cogmind - Beta 16.1 @@@ ROGUE MODE // 2026.04.07 @ 17:24:30 Player: Lazz Result: Destroyed by G-47 Trooper with Particle Gun Performance ------------- Evolutions (2) 1000 Regions Visited (3) 600 Robots Destroyed (75) 375 Value Destroyed (1771) 1771 Prototype IDs (3) 60 Alien Tech Used (0) 0 Bonus (0) 0 TOTAL SCORE: 3806 Bonus ------- None Cogmind --------- Core Integrity 0/550 Matter 9/300 Energy 100/100 System Corruption 0% Temperature Cool (45) Movement Core (1350) Ox26 Location -8/Materials Parts ------- > --- POWER (1) -------- (None) > --- PROPULSION (3) --- (None) > --- UTILITY (5) ------ Huge Storage Unit Improved Signal Interpreter > --- WEAPON (2) ------- (None) > --- INVENTORY (25) --- Flight Unit Flight Unit Flight Unit Improved Light Cannon Mining Laser Mace Peak State ------------ > --- POWER ------------ Light Ion Engine > --- PROPULSION ------- Wheel Armored Wheel Armored Wheel > --- UTILITY ---------- Huge Storage Unit Structural Scanner Sensor Array Improved Signal Interpreter Hacking Suite > --- WEAPON ----------- Improved Light Cannon Improved Light Cannon > --- INVENTORY -------- Flight Unit Flight Unit Medium Battery Improved Light Cannon Grenade Launcher Mini Grenade Launcher Mining Laser Mace [Rating: 20] Favorites ----------- Power Ion Engine Engine Ion Engine Propulsion Armored Wheel Treads Light Treads Wheel Armored Wheel Utility Huge Storage Unit Device Seismic Detector Storage Huge Storage Unit Processor Signal Interpreter Hackware Hacking Suite Weapon Shotgun Energy Gun Gatling Laser Ballistic Gun Shotgun Ballistic Cannon Improved Light Cannon Launcher Mini Grenade Launcher Special Weapon Mining Laser Build | -11 -10 -9 -8 ------- Run | Yrd Mat Mat Mat Slots Evolved 4 | . . 2 2 Power . | . . . . Propulsion 1 | . . . 1 Utility 3 | . . 2 1 Weapon . | . . . . Parts Attached 36 | 7 8 10 11 Power 6 | 1 1 2 2 Engine 6 | 1 1 2 2 Core . | . . . . Reactor . | . . . . Propulsion 7 | 2 2 2 1 Treads 2 | 2 . . . Leg . | . . . . Wheel 5 | . 2 2 1 Hover . | . . . . Flight . | . . . . Utility 10 | 2 1 4 3 Device 4 | 1 . 3 . Storage 3 | 1 1 . 1 Processor 2 | . . 1 1 Hackware 1 | . . . 1 Protection . | . . . . Artifact . | . . . . Weapon 13 | 2 4 2 5 Energy Gun 2 | . . . 2 Energy Cannon . | . . . . Ballistic Gun 6 | 2 3 1 . Ballistic Cannon 2 | . . 1 1 Launcher 2 | . . . 2 Special Weapon 1 | . 1 . . Impact Weapon . | . . . . Slashing Weapon . | . . . . Piercing Weapon . | . . . . Special Melee Weapon . | . . . . Unidentified Prototypes 1 | . . 1 . Parts Lost 24 | . 3 8 13 Power 5 | . 1 2 2 Propulsion 5 | . . 2 3 Utility 5 | . 1 1 3 Weapon 9 | . 1 3 5 Highest Loss Streak 13 | . 1 3 13 To Critical Strikes . | . . . . Average Backups 8 | 2 8 10 8 Power . | . . . . Propulsion 2 | 1 2 1 2 Utility 1 | . 1 1 1 Weapon 5 | . 4 7 4 Tool/Special . | . . . . Unused Backups 9 | . 3 . 6 Power . | . . . . Propulsion 5 | . 2 . 3 Utility 1 | . . . 1 Weapon 3 | . 1 . 2 Tool/Special . | . . . . Average Slot Usage (%) 93 | . 95 94 79 Engine 11 | . 13 8 4 Treads 8 | . 13 . . Wheel 16 | . 14 20 20 Device 13 | . 9 21 15 Storage 12 | . 14 11 9 Processor 3 | . . 10 9 Ballistic Gun 22 | . 27 20 . Ballistic Cannon 1 | . . . 13 Peak Build Rating 20 | 7 12 15 20 Average Rating 11 | 5 10 13 15 On Entrance 7 | . 7 11 10 Avg Prop Armor Cover (%) . | . . . . Naked Turns . | . . . . Heaviest Build 96 | 15 92 96 93 Greatest Support 40 | 40 40 24 34 Greatest Overweight (x) 26 | 1 3 7 26 Average Overweight (x) 2 | . 1 3 2 Largest Inventory Capacity 25 | 8 25 25 25 Average Capacity 19 | 7 16 25 25 Most Carried 13 | 4 13 13 11 Average Carried 8 | 2 8 10 8 Final Capacity 25 | 8 25 25 25 Final Carried 13 | 4 13 9 6 Class Distribution -------------------- 66% | Mutant 28% | Skirmisher 4% | Scavenger-Skirmisher Dominant Class ---------------- Mutant | -10/Materials Skirmisher | -9/Materials Scavenger-Skirmisher | -8/Materials Resources | -11 -10 -9 -8 ----------- Run | Yrd Mat Mat Mat Matter Collected 1499 | 360 589 457 93 Remotely . | . . . . Salvage Created 2058 | 248 788 779 243 Parts 153 | 19 57 56 21 Haulers Intercepted 3 | . 1 2 . Recyclers Shooed . | . . . . Parts Field Recycled . | . . . . Retrieved Matter . | . . . . Parts Self-Destructed . | . . . . Prevented . | . . . . Parts Restored . | . . . . Kills | -11 -10 -9 -8 ------- Run | Yrd Mat Mat Mat Combat Hostiles Destroyed 48 | . 18 18 12 Guns 35 | . 18 16 1 Cannons 6 | . . 2 4 AOE 7 | . . . 7 Classes Destroyed 11 | 3 4 3 1 Worker 4 | 2 1 1 . Builder 8 | . 5 1 2 Tunneler 5 | 5 . . . Hauler 3 | . 1 2 . Recycler 1 | 1 . . . Operator 2 | . . 2 . Watcher 4 | . 1 3 . Swarmer 10 | . . 3 7 Grunt 32 | . 18 11 3 Duelist 1 | . . . 1 Sentry 5 | . . 4 1 Best Kill Streak 6 | 6 4 5 5 Combat Bots Only 5 | . 3 4 5 Max Kills in Single Turn 3 | 1 2 2 3 Gunslinging . | . . . . Exploded 3 | . . . 3 Melee . | . . . . Uniques/NPCs Destroyed . | . . . . Combat | -11 -10 -9 -8 -------- Run | Yrd Mat Mat Mat Hostile Shots Fired 378 | . 94 108 176 Missed 102 | . 28 31 43 Hits 276 | . 66 77 133 Melee 4 | . . . 4 Projectile 272 | . 66 77 129 Critical Strikes 7 | . . 2 5 Damage Taken 3441 | . 811 947 1683 Core 933 | . 127 241 565 Absorbed by Shields . | . . . . Core Remaining (%) 62 | 100 49 39 . Volleys Fired 176 | 15 68 65 28 Largest 2 | 2 2 2 2 Hottest 160 | 40 100 56 160 Shots Fired 336 | 30 131 123 52 Gun 279 | 30 129 114 6 Cannon 49 | . . 9 40 Launcher 6 | . . . 6 Special 2 | . 2 . . Kinetic 322 | 30 129 123 40 Thermal 8 | . 2 . 6 Explosive 6 | . . . 6 Electromagnetic . | . . . . Robot Hit Streak 14 | 5 10 14 13 Robot Miss Streak 7 | 1 7 7 3 Penetration Max . | . . . . Secondary Targets 4 | . 2 2 . Max Gunslinging Chain 1 | . 1 1 . Shots Hit Robots 223 | 20 92 83 28 Core Hits 139 | 9 54 50 26 Critical Kills 2 | . . 2 . Critical Parts Destroyed 1 | . 1 . . Critical Strikes 5 | . 1 2 2 Destroy 3 | . 1 2 . Blast 2 | . . . 2 Melee Attacks . | . . . . Impact . | . . . . Slashing . | . . . . Piercing . | . . . . Sneak Attacks . | . . . . Combat Hostiles . | . . . . Follow-up Attacks . | . . . . Damage Inflicted 4134 | 250 1492 1432 960 Guns 3186 | 250 1492 1268 176 Cannons 583 | . . 164 419 Explosions 349 | . . . 349 Melee . | . . . . Ramming 16 | . . . 16 Kinetic 3593 | 250 1492 1432 419 Thermal 176 | . . . 176 Explosive 349 | . . . 349 Electromagnetic . | . . . . Impact . | . . . . Slashing . | . . . . Piercing . | . . . . Highest Corruption . | . . . . Average Corruption . | . . . . Corruption Purged . | . . . . Corruption Blocked . | . . . . Overload Shots . | . . . . Overflow Damage 17 | . . . 17 Projectiles . | . . . . Explosions 17 | . . . 17 Melee . | . . . . Knockbacks 5 | . . 3 2 Impact . | . . . . Kinetic 5 | . . 3 2 Secondary . | . . . . Self-Inflicted Damage 52 | . . . 52 Shots 1 | . . . 1 Rammed 3 | . . . 3 Targets Rammed 3 | . . . 3 Kicked . | . . . . Crushed . | . . . . Highest Temperature 148 | . 40 20 148 Average Temperature 22 | . 8 6 47 Received Heat Transfer 1368 | . 453 384 531 Siege Activations . | . . . . Martial Activations . | . . . . Shielding Activations . | . . . . Robots Disrupted . | . . . . Combat Hostiles . | . . . . Robots Corrupted . | . . . . Combat Hostiles . | . . . . Parts Fried . | . . . . Impact Corruptions . | . . . . Robots Melted . | . . . . Combat Hostiles . | . . . . Parts Melted 1 | . . . 1 Heat Transferred 400 | . . . 400 Parts Sabotaged . | . . . . Parts Stolen . | . . . . Parts Stripped . | . . . . Power Chain Reactions . | . . . . Alert | -11 -10 -9 -8 ------- Run | Yrd Mat Mat Mat Maximum Alert Level 1 | . . 1 . Low Security (%) 96 | 100 100 84 100 Level 1 3 | . . 15 . Level 2 . | . . . . Level 3 . | . . . . Level 4 . | . . . . Level 5 . | . . . . High Security . | . . . . Max Security . | . . . . Peak Influence 240 | 15 104 240 136 Initial 45 | . . 42 45 Average 52 | 2 34 109 46 Influence Increases 1537 | 40 557 550 390 Destroy 0b10 Robot/C 960 | . 360 360 240 Destroy 0b10 Robot/NC 135 | 40 40 45 10 Destroy Leader 244 | . 94 100 50 Successful Hack 17 | . 17 . . Disable Machine 30 | . 15 . 15 Destroy Structure 46 | . 1 . 45 Partial Spotted 15 | . . 15 . Lose Combat Pursuer 90 | . 30 30 30 Influence Decreases 1439 | 40 457 542 400 Entered New Map 121 | . . 58 63 Time Decay 819 | 40 415 254 110 Lost Part 200 | . 20 80 100 Purge Threat 299 | . 22 150 127 Squads Dispatched 9 | . 6 2 1 Investigation 6 | . 6 . . Extermination . | . . . . Reinforcement 3 | . . 2 1 Assault . | . . . . Garrison . | . . . . Intercept . | . . . . Searches Triggered . | . . . . Construction Impeded . | . . . . Haulers Reinforced . | . . . . Active Scanning Responses . | . . . . Cargo Convoy Interrupts . | . . . . Stealth | -11 -10 -9 -8 --------- Run | Yrd Mat Mat Mat Distress Signals 8 | . 2 4 2 Communications Jammed . | . . . . Distress Signals . | . . . . Times Spotted 77 | . 28 29 20 Peak Tracking Total 11 | . 4 7 11 Tactical Retreats 4 | . 2 1 1 Traps | -11 -10 -9 -8 ------- Run | Yrd Mat Mat Mat Traps Triggered 4 | . 4 . . Indirectly . | . . . . Trap Hack Attempts . | . . . . Triggered . | . . . . Disarmed . | . . . . Reprogrammed . | . . . . Reused . | . . . . Traps Extracted . | . . . . Installed . | . . . . Triggered . | . . . . Machines | -11 -10 -9 -8 ---------- Run | Yrd Mat Mat Mat Machines Disabled 2 | . 1 . 1 Max in Single Turn 1 | . 1 . 1 Machines Repaired . | . . . . Machines Dismantled . | . . . . Machines Sabotaged . | . . . . Overloaded Fab Kills . | . . . . Hacking | -11 -10 -9 -8 --------- Run | Yrd Mat Mat Mat Machines Accessed 10 | . 5 4 1 Terminals 9 | . 5 3 1 Fabricators . | . . . . Repair Stations . | . . . . Recycling Units . | . . . . Scanalyzers 1 | . . 1 . Garrison Access . | . . . . Total Hacks 39 | . 17 18 4 Successful 17 | . 8 8 1 Failed 22 | . 9 10 3 Catastrophic 1 | . . 1 . Database Lockouts . | . . . . Manual 12 | . 7 5 . Terminals 32 | . 17 11 4 Fabricators . | . . . . Repair Stations . | . . . . Recycling Units . | . . . . Scanalyzers 7 | . . 7 . Garrison Access . | . . . . Terminal Hacks 10 | . 7 2 1 Robot Analysis 1 | . 1 . . Prototype ID Bank 1 | . 1 . . Branch Access Points 1 | . 1 . . Emergency Access Points 1 | . 1 . . Unreport Threat 4 | . 2 1 1 Zone Layout 2 | . 1 1 . Fabricator Hacks . | . . . . Repair Station Hacks . | . . . . Recycling Unit Hacks . | . . . . Scanalyzer 6 | . . 6 . Insert Component 2 | . . 2 . Analyze 3 | . . 3 . Retrieve Study 1 | . . 1 . Garrison Access Hacks . | . . . . Unauthorized Hacks 1 | . 1 . . Terminals 1 | . 1 . . Operators 1 | . 1 . . Fabricators . | . . . . Repair Stations . | . . . . Recycling Units . | . . . . Scanalyzers . | . . . . Garrison Access . | . . . . Data Cores Recovered . | . . . . Used . | . . . . Hacking Detections 10 | . 5 4 1 Full Trace Events 7 | . 3 3 1 Feedback Events . | . . . . Feedback Blocked . | . . . . Robot Schematics Acquired . | . . . . Robots Built . | . . . . Authchips . | . . . . Time . | . . . . Total Robot Build Rating . | . . . . Part Schematics Acquired 2 | . . 2 . Parts Built . | . . . . Authchips . | . . . . Time . | . . . . Total Part Build Rating . | . . . . Part Studies Acquired 1 | . . 1 . Parts Repaired . | . . . . Time . | . . . . Parts Recycled . | . . . . Recycled Matter . | . . . . Retrieved Matter . | . . . . Retrieved Components . | . . . . Parts Scanalyzed 2 | . . 2 . Part Schematics Acquired 2 | . . 2 . Parts Damaged . | . . . . Bothacking | -11 -10 -9 -8 ------------ Run | Yrd Mat Mat Mat Used RIF Installer . | . . . . Robots Hacked . | . . . . Non-combat . | . . . . Combat . | . . . . Robot Hacks Applied . | . . . . Relay Couplers Released . | . . . . Fabnet Peak Effective % . | . . . . Robots Rewired . | . . . . Allies Hacked . | . . . . Hacks Repelled . | . . . . Allies | -11 -10 -9 -8 -------- Run | Yrd Mat Mat Mat Total Allies . | . . . . Largest Group . | . . . . Highest-Rated Group . | . . . . Highest-Rated Ally . | . . . . Total Orders . | . . . . Ally Attacks . | . . . . Total Damage . | . . . . Kills . | . . . . Allies Corrupted . | . . . . Allies Melted . | . . . . Intel | -11 -10 -9 -8 ------- Run | Yrd Mat Mat Mat Active Infowar (turns) 1788 | 58 936 571 223 Sensors 794 | . . 571 223 Structural 744 | . . 552 192 Seismic 994 | 58 936 . . Robot Analysis Total 1 | . 1 . . Derelict Logs Recovered . | . . . . Drone Launches . | . . . . Drone Recoveries . | . . . . Exploration | -11 -10 -9 -8 ------------- Run | Yrd Mat Mat Mat Turns Passed 2321 | 171 1321 571 258 Spaces Moved 1113 | 73 691 244 105 Core 7 | 6 . . 1 Treads 382 | 67 315 . . Legs . | . . . . Wheels 724 | . 376 244 104 Hover . | . . . . Flight . | . . . . Fastest Speed 50 | 50 135 125 110 Average Speed 144 | 154 146 140 131 Slowest Speed 1350 | 160 160 195 1350 Overloaded Moves . | . . . . Propulsion Burnouts . | . . . . Robots Hopped . | . . . . Potential Cave-ins . | . . . . Cave-ins Triggered . | . . . . Exploration Rate (%) 34 | 3 89 31 14 Regions Visited 3 Branch Regions . Pre-discovered Areas . | . . . . Known Exits Taken 1 | . . 1 . Unknown Exits Taken 2 | 1 1 . . Scrap Searched . | . . . . Spaces Dug . | . . . . Terrain Destroyed 50 | . 1 . 49 Melee . | . . . . Projectile 4 | . 1 . 3 AOE 46 | . . . 46 Terrain Rammed . | . . . . Walls Destroyed . | . . . . Machines Disabled . | . . . . Actions | -11 -10 -9 -8 --------- Run | Yrd Mat Mat Mat Total 1488 | 98 869 349 172 Wait 120 | . 79 26 15 Move 1110 | 72 690 243 105 Hop . | . . . . Pick Up 27 | 4 15 4 4 Fast Attach 13 | 7 1 2 3 Attach 15 | . 1 8 6 Detach . | . . . . Swap 12 | . 7 . 5 Drop 12 | . 8 1 3 Fire 176 | 15 68 65 28 Melee . | . . . . Ram 3 | . . . 3 Kick . | . . . . Crush . | . . . . Escape Stasis . | . . . . Rewire . | . . . . Trap . | . . . . Miscellaneous . | . . . . Route ------- -11/Scrapyard -10/Materials (discovered 4 exits: *Mat x3 / *Min) -9/Materials -8/Materials History --------- Turn | Location | Event 13 | -11/Scrapyard | Discovered new exit (range 14) 172 | -11/Scrapyard | Entered Materials 260 | -10/Materials | Discovered new exit (range 8) 302 | -10/Materials | Build established: Mutant 472 | -10/Materials | Discovered new exit (range 8) 580 | -10/Materials | Discovered new exit (range 13) 1146 | -10/Materials | Discovered new exit (range 15) 1235 | -10/Materials | Identified exit to Mines 1490 | -10/Materials | Core integrity fell below 50% 1493 | -10/Materials | Entered another Materials area 1493 | -9/Materials | Evolved 2 slots: Utility x2 1678 | -9/Materials | Lost 3 parts (1p1n1w) 1764 | -9/Materials | Core integrity fell below 50% 1789 | -9/Materials | Build established: Skirmisher 2055 | -9/Materials | Discovered new exit (range 9) 2063 | -9/Materials | Identified exit to Materials 2064 | -9/Materials | Entered another Materials area 2064 | -8/Materials | Evolved 2 slots: Propulsion x1, Utility x1 2069 | -8/Materials | Lost 3 parts (1u2w) 2314 | -8/Materials | Core integrity fell below 50% 2320 | -8/Materials | Core integrity fell below 20% 2322 | -8/Materials | Destroyed by G-47 Trooper with Particle Gun Last Messages --------------- 02299_ Critical hit (Burn: +37). 02299_ Gatling Laser destroyed. 02299_ G-47 Trooper destroyed. 02301_ Grenade Launcher destroyed. 02305_ Deuterium Engine destroyed. 02305_ Destroyed Flight Unit. 02305_ S-10 Pest destroyed. 02305_ Destroyed Flight Unit. 02305_ S-10 Pest destroyed. 02305_ Destroyed Flight Unit. 02305_ S-10 Pest destroyed. 02308_ U-05 Engineer lays Concrete. 02311_ Dropped Huge Storage Unit. 02313_ U-05 Engineer builds a Wall. 02316_ Critical hit (Burn: +37). 02316_ Mni. Grenade Launcher destroyed. 02316_ Critical hit (Burn: +37). 02317_ U-05 Engineer lays Concrete. 02319_ U-05 Engineer builds a Wall. 02322_ Critical hit (Burn: +37). Map ----- +----------------------------------------------------+ | ?????????????????? ??????## ##??? | | ?????????????????? ??????## ##??? | | ?????????????????? #####?## ##??? | | ???????????????????# ? # ##??? | | ?????????????????? # ? # ##??? | | ?????????????????? # ?? # ##??? | | ?????????????????? # ?? # ##??? | | ?????????????????? # ?? # ##??? | | ?????????????##### # # ##??? | | ?????????????##### ##+##### ##??? | | ??????? %%% % % ##??? | | ?????????????#####"## ########??? | | ?????????????######## ########??? | | ??????????????????### ###???????? | | ??????????????????# #???????? | | ??????????????????# #???????? | | ??????????????????+ #???????? | | ??????????????????# #???????? | | ??????????????????# #???????? | | ??????????????????## ######???? | | ???????????????????# =g # #???? | | ??????????????????## %Y =!! #???? | | ??????????????????##u *gg! #???? | | ??????????????????## Y %![ #???? | | ??????????????????# ![ #???? | | ??????????????????# @= #???? | | ??????????????????# == #???? | | ??????????????????## # ##???? | | ???????????????????# #####????? | | ???????????????????# #????????? | | ???????????????????# #????????? | | ???????????????????# ?????????? | | ???????????????????# ?????????? | | ???????????????????# ?????????? | | ???????????????????# ?????????? | | ???????????????????# ?????????? | | ???????????????????? ??????????? | | ????????????????????????????????? | | ????????????????????????????????? | | ????????????????????????????????? | | ????????????????????????????????? | | ????????????????????????????????? | | ????????????????????????????????? | | ????????????????????????????????? | | ????????????????????????????????? | | ????????????????????????????????? | | | | | | | | | +----------------------------------------------------+ Best States ------------- Heat Dissipation 31 Energy Generation 14 Energy Capacity 280 Matter Stores 300 Matter Capacity 300 Sight Range 16 Robot Scan Range 14 Terrain Scan Density 10 Evasion (%) 40 Recoil Reduction 2 Offensive Hacking 10 Item Schematics ----------------- Arm. Wheel | -9/Materials | Scanalyzed Hacking Suite | -9/Materials | Scanalyzed Robot Schematics ------------------ None Fabricated ------------ Nothing Repaired ---------- Nothing Studied --------- Arm. Wheel | -9/Materials | Hacked Alien Tech Used ----------------- None Achievements -------------- None Challenges ------------ None Game ------ Seed UtilityChromaticCore Manual? 0 Play Time 00:18:46 Cumulative 158.5 hours Start 2026.04.07 @ 17:06:08 End 2026.04.07 @ 17:24:30 Sessions 1 Manual Loads 0 Difficulty Rogue Special Mode None Game No. 227 Rogue 227 Adventurer 0 Explorer 0 Win Type - Total 1 Types 1/0/0/0/0/0/0/0/0/0 Lore% 69 Gallery% 58 Achievement% 44 Wizard Run 0 Options --------- Layout 2 ASCII 0 Keyboard 0 Movement Mouse Keybinds 0 Fullscreen 1 Font 24/Smallcaps Map View 50x44 Zoom Use 0% Tactical HUD 1 Map Filters NONE Filters NONE Steam 1 RUN: bbd5c301-a13a-483d-8446-ec611e5c2512